[Event "44th Chess Olympiad Women 2022"]
[Site "Chennai"]
[Date "2022.08.09"]
[Round "11.63"]
[White "Mpinganjira, Ellen"]
[Black "Abigail Karyah"]
[Result "0-1"]
[ECO "C41"]
[WhiteElo "1334"]
[BlackElo "1455"]
[Annotator "NA RC COMBH"]
[PlyCount "94"]
[EventDate "2022.07.29"]
[EventType "team-tourn"]
[EventCountry "IND"]
[SourceTitle "playchess.com"]
[Source "ChessBase"]
[SourceQuality "1"]
[WhiteTeam "MAW"]
[BlackTeam "Liberia"]
[BlackTeamCountry "LBR"]
[TimeControl "40/5400+30:1800+30"]

1. e4 {[%emt 0:00:04]} e5 {[%emt 0:00:07]} 2. Nf3 {[%emt 0:00:07]} d6 {[%emt 0:00:06]} 3. Bc4 {[%emt 0:01:49]} h6 {[%emt 0:00:12]} 4. h3 {[%emt 0:00:29]} Nf6 {[%emt 0:00:18]} 5. d3 {[%emt 0:00:35]} Be7 {[%emt 0:00:32]} 6. O-O {[%emt 0:00:45]} O-O {[%emt 0:00:07]} 7. Be3 {[%emt 0:01:20]} Nc6 {[%emt 0:00:52]} 8. c3 {[%emt 0:02:19]} b6 {[%emt 0:00:26]} 9. Nbd2 {[%emt 0:00:58]} Bb7 {[%emt 0:00:22]} 10. Re1 {[%emt 0:00:46]} Qd7 {[%emt 0:00:53]} 11. Nf1 {[%emt 0:00:23]} Rad8 {[%emt 0:00:29]} 12. Qd2 {[%emt 0:02:19]} d5 {[%emt 0:02:09]} 13. exd5 {[%emt 0:02:18]} Nxd5 {[%emt 0:01:00]} 14. Rad1 {[%emt 0:12:08]} Bf6 {[%emt 0:04:52]} 15. Ng3 {[%emt 0:02:39]} Nxe3 {[%emt 0:03:24]} 16. Qxe3 {[%emt 0:06:23]} Rfe8 {[%emt 0:10:44]} 17. Ne4 {[%emt 0:01:47]} Be7 {[%emt 0:01:17]} 18. b4 {[%emt 0:02:39]} Bd6 {[%emt 0:02:41]} 19. Nh2 {[%emt 0:00:41]} Kh8 {[%emt 0:03:04]} 20. Ng3 {[%emt 0:04:09]} f6 {[%emt 0:02:50]} 21. Nh5 {[%emt 0:05:28]} Bf8 {[%emt 0:02:05]} 22. Nf3 {[%emt 0:02:47]} a5 {[%emt 0:07:41]} 23. b5 {[%emt 0:02:46]} Na7 {[%emt 0:00:49]} 24. a4 {[%emt 0:00:30]} Bd5 {[%emt 0:02:47]} 25. Bxd5 {[%emt 0:02:57]} Qxd5 {[%emt 0:00:20]} 26. c4 {[%emt 0:01:50]} Qf7 {[%emt 0:00:13]} 27. Ng3 {[%emt 0:04:31]} Bc5 {[%emt 0:02:43]} 28. Qc1 {[%emt 0:05:34]} c6 {[%emt 0:00:24]} 29. Ne4 {[%emt 0:01:33]} Bb4 {[%emt 0:00:30]} 30. Rf1 {[%emt 0:01:34]} cxb5 {[%emt 0:00:07]} 31. cxb5 {[%emt 0:00:20]} Qb3 {[%emt 0:01:01]} 32. Qc7 {[%emt 0:15:21]} Nc8 {[%emt 0:01:15]} 33. Nh4 {[%emt 0:01:09]} Qxa4 {[%emt 0:05:40]} 34. Nf5 {[%emt 0:03:46]} Bf8 {[%emt 0:04:00]} 35. Nc3 {[%emt 0:05:07]} Qf4 {[%emt 0:01:44]} 36. g4 {[%emt 0:02:00]} Qf3 {[%emt 0:00:34]} 37. Nh4 {[%emt 0:01:12]} Qxh3 {[%emt 0:01:06]} 38. Ng6+ {[%emt 0:01:59]} Kh7 {[%emt 0:03:09]} 39. Nxf8+ {[%emt 0:00:15]} Rxf8 {[%emt 0:00:08]} 40. f3 {[%emt 0:00:22]} Qg3+ {[%emt 0:01:30]} 41. Kh1 {[%emt 0:30:10]} Qf4 {[%emt 0:33:00]} 42. Ne4 {[%emt 0:00:35]} Kh8 {[%emt 0:01:53]} 43. Qc4 {[%emt 0:02:50]} f5 {[%emt 0:00:37]} 44. gxf5 {[%emt 0:02:28]} Rxf5 {[%emt 0:00:32]} 45. Kg2 {[%emt 0:00:00]} Rh5 {[%emt 0:00:00]} 46. Rh1 {[%emt 0:00:00]} Rf8 {[%emt 0:00:00]} 47. Rxh5 {[%emt 0:00:00]} Qxf3+ {[%emt 0:00:00]} 0-1

[Event "44th Chess Olympiad Women 2022"]
[Site "Chennai"]
[Date "2022.08.09"]
[Round "11.64"]
[White "Ollet, Myra"]
[Black "Yavo Tchetche, Marie"]
[Result "1-0"]
[ECO "A48"]
[WhiteElo "1480"]
[BlackElo "1313"]
[Annotator "NA RC COMBH"]
[PlyCount "105"]
[EventDate "2022.07.29"]
[EventType "team-tourn"]
[EventCountry "IND"]
[SourceTitle "playchess.com"]
[Source "ChessBase"]
[SourceQuality "1"]
[WhiteTeam "GUM"]
[BlackTeam "CIV"]
[TimeControl "40/5400+30:1800+30"]

1. d4 {[%emt 0:00:13]} Nf6 {[%emt 0:00:38]} 2. Nf3 {[%emt 0:00:20]} g6 {[%emt 0:00:51]} 3. Bf4 {[%emt 0:00:23]} Bg7 {[%emt 0:01:07]} 4. e3 {[%emt 0:00:25]} O-O {[%emt 0:03:14]} 5. c3 {[%emt 0:00:11]} d6 {[%emt 0:01:23]} 6. Nbd2 {[%emt 0:00:34]} Nbd7 {[%emt 0:02:07]} 7. Bg3 {[%emt 0:01:12]} c5 {[%emt 0:04:27]} 8. Qb3 {[%emt 0:03:26]} a6 {[%emt 0:02:24]} 9. d5 {[%emt 0:00:59]} b5 {[%emt 0:02:09]} 10. c4 {[%emt 0:01:39]} b4 {[%emt 0:01:11]} 11. Bd3 {[%emt 0:00:07]} a5 {[%emt 0:01:19]} 12. O-O {[%emt 0:00:48]} Nh5 {[%emt 0:00:51]} 13. Rab1 {[%emt 0:00:36]} Nxg3 {[%emt 0:00:42]} 14. fxg3 {[%emt 0:00:12]} Ne5 {[%emt 0:00:44]} 15. Be2 {[%emt 0:00:40]} e6 {[%emt 0:01:23]} 16. Nxe5 {[%emt 0:02:06]} Bxe5 {[%emt 0:01:03]} 17. Nf3 {[%emt 0:01:22]} Bg7 {[%emt 0:01:15]} 18. e4 {[%emt 0:00:11]} exd5 {[%emt 0:00:57]} 19. cxd5 {[%emt 0:01:07]} Qb6 {[%emt 0:03:01]} 20. Kh1 {[%emt 0:00:57]} Re8 {[%emt 0:00:37]} 21. Qc2 {[%emt 0:00:12]} Ba6 {[%emt 0:00:33]} 22. Bxa6 {[%emt 0:00:25]} Qxa6 {[%emt 0:01:37]} 23. Ng5 {[%emt 0:00:51]} Re7 {[%emt 0:03:17]} 24. b3 {[%emt 0:01:42]} h6 {[%emt 0:00:24]} 25. Nh3 {[%emt 0:02:38]} Rae8 {[%emt 0:00:29]} 26. Nf2 {[%emt 0:00:36]} Qb6 {[%emt 0:02:45]} 27. Rbe1 {[%emt 0:01:35]} Bc3 {[%emt 0:02:02]} 28. Re2 {[%emt 0:00:32]} Qb5 {[%emt 0:00:55]} 29. h4 {[%emt 0:05:20]} h5 {[%emt 0:00:53]} 30. Kh2 {[%emt 0:00:50]} c4 {[%emt 0:01:05]} 31. g4 {[%emt 0:01:34]} cxb3 {[%emt 0:00:56]} 32. axb3 {[%emt 0:00:09]} Rc7 {[%emt 0:04:05]} 33. Qd1 {[%emt 0:00:35]} Be5+ {[%emt 0:01:59]} 34. g3 {[%emt 0:01:48]} Rc3 {[%emt 0:00:39]} 35. Rg1 {[%emt 0:00:10]} hxg4 {[%emt 0:00:47]} 36. Nxg4 {[%emt 0:00:29]} Qd3 {[%emt 0:00:29]} 37. Nxe5 {[%emt 0:01:36]} Rxe5 {[%emt 0:00:26]} 38. Qxd3 {[%emt 0:00:27]} Rxd3 {[%emt 0:00:04]} 39. Rb1 {[%emt 0:00:19]} Rdxd5 {[%emt 0:01:14]} 40. Rc1 {[%emt 0:01:37]} Rd3 {[%emt 0:01:12]} 41. Rf2 {[%emt 0:30:24]} Rxe4 {[%emt 0:32:10]} 42. Rc8+ {[%emt 0:00:07]} Kg7 {[%emt 0:01:28]} 43. Rc7 {[%emt 0:00:06]} Kh6 {[%emt 0:00:23]} 44. Rfxf7 {[%emt 0:00:10]} Kh5 {[%emt 0:00:30]} 45. Rc4 {[%emt 0:04:08]} Rxc4 {[%emt 0:02:29]} 46. bxc4 {[%emt 0:00:06]} Kg4 {[%emt 0:00:38]} 47. Rf4+ {[%emt 0:00:22]} Kh5 {[%emt 0:01:08]} 48. Kh3 {[%emt 0:00:25]} b3 {[%emt 0:00:16]} 49. Rf7 {[%emt 0:00:38]} Kh6 {[%emt 0:01:24]} 50. Ra7 {[%emt 0:00:29]} b2 {[%emt 0:00:24]} 51. Rb7 {[%emt 0:00:22]} Rd2 {[%emt 0:00:18]} 52. g4 {[%emt 0:00:07]} a4 {[%emt 0:00:07]} 53. g5+ {[%emt 0:00:30]} 1-0

[Event "44th Chess Olympiad Women 2022"]
[Site "Chennai"]
[Date "2022.08.09"]
[Round "11.65"]
[White "Roberts, Tallulah"]
[Black "Felix, Tobi"]
[Result "1/2-1/2"]
[ECO "A00"]
[WhiteElo "1536"]
[BlackElo "1460"]
[Annotator "NA RC COMBH"]
[PlyCount "60"]
[EventDate "2022.07.29"]
[EventType "team-tourn"]
[EventCountry "IND"]
[SourceTitle "playchess.com"]
[Source "ChessBase"]
[SourceQuality "1"]
[WhiteTeam "Channel Islands"]
[BlackTeam "Ghana"]
[WhiteTeamCountry "JCI"]
[BlackTeamCountry "GHA"]
[TimeControl "40/5400+30:1800+30"]

1. b4 {[%emt 0:00:02]} d5 {[%emt 0:01:13]} 2. Bb2 {[%emt 0:00:06]} Nf6 {[%emt 0:00:31]} 3. e3 {[%emt 0:00:34]} Bf5 {[%emt 0:00:44]} 4. Nf3 {[%emt 0:00:34]} e6 {[%emt 0:00:08]} 5. a3 {[%emt 0:00:38]} Be7 {[%emt 0:00:41]} 6. c4 {[%emt 0:01:28]} c6 {[%emt 0:00:52]} 7. Nc3 {[%emt 0:01:01]} Nbd7 {[%emt 0:01:45]} 8. Rc1 {[%emt 0:02:39]} dxc4 {[%emt 0:00:51]} 9. Bxc4 {[%emt 0:00:15]} a6 {[%emt 0:01:22]} 10. O-O {[%emt 0:01:54]} O-O {[%emt 0:02:13]} 11. h3 {[%emt 0:08:18]} b5 {[%emt 0:00:30]} 12. Ba2 {[%emt 0:01:26]} c5 {[%emt 0:00:37]} 13. bxc5 {[%emt 0:01:45]} Nxc5 {[%emt 0:00:32]} 14. Ne5 {[%emt 0:02:35]} Rc8 {[%emt 0:11:26]} 15. d4 {[%emt 0:05:06]} Nce4 {[%emt 0:01:42]} 16. Nxe4 {[%emt 0:05:04]} Bxe4 {[%emt 0:00:12]} 17. f3 {[%emt 0:02:06]} Bb7 {[%emt 0:01:21]} 18. Qd3 {[%emt 0:05:20]} Qd6 {[%emt 0:05:44]} 19. Bb1 {[%emt 0:03:41]} Rfd8 {[%emt 0:05:06]} 20. Ng4 {[%emt 0:05:42]} g6 {[%emt 0:01:41]} 21. Rxc8 {[%emt 0:03:24]} Rxc8 {[%emt 0:00:35]} 22. Ne5 {[%emt 0:03:49]} b4 {[%emt 0:04:05]} 23. a4 {[%emt 0:08:09]} Nd5 {[%emt 0:02:38]} 24. Qe4 {[%emt 0:07:44]} f6 {[%emt 0:07:41]} 25. Nxg6 {[%emt 0:06:33]} hxg6 {[%emt 0:00:20]} 26. Qxg6+ {[%emt 0:00:01]} Kf8 {[%emt 0:00:11]} 27. h4 {[%emt 0:01:58]} Nxe3 {[%emt 0:20:04]} 28. Qh6+ {[%emt 0:01:07]} Ke8 {[%emt 0:02:09]} 29. Bg6+ {[%emt 0:00:37]} Kd7 {[%emt 0:00:27]} 30. Qxe3 {[%emt 0:00:17]} Qg3 {[%emt 0:00:42]} 1/2-1/2

[Event "44th Chess Olympiad Women 2022"]
[Site "Chennai"]
[Date "2022.08.09"]
[Round "11.66"]
[White "Sagastegui, Thamara"]
[Black "Alazmi, Aeshah"]
[Result "0-1"]
[ECO "C45"]
[WhiteElo "1362"]
[BlackElo "1256"]
[Annotator "NA RC COMBH"]
[PlyCount "114"]
[EventDate "2022.07.29"]
[EventType "team-tourn"]
[EventCountry "IND"]
[SourceTitle "playchess.com"]
[Source "ChessBase"]
[SourceQuality "1"]
[WhiteTeam "ARU"]
[BlackTeam "Kuwait"]
[BlackTeamCountry "KUW"]
[TimeControl "40/5400+30:1800+30"]

1. e4 {[%emt 0:00:01]} e5 {[%emt 0:00:04]} 2. Nf3 {[%emt 0:00:07]} Nc6 {[%emt 0:00:04]} 3. Nc3 {[%emt 0:00:03]} Nf6 {[%emt 0:00:29]} 4. d4 {[%emt 0:00:47]} exd4 {[%emt 0:01:57]} 5. Nxd4 {[%emt 0:00:06]} Nxd4 {[%emt 0:00:06]} 6. Qxd4 {[%emt 0:00:05]} d6 {[%emt 0:00:21]} 7. Bf4 {[%emt 0:01:12]} Be7 {[%emt 0:00:41]} 8. h3 {[%emt 0:06:59]} O-O {[%emt 0:00:37]} 9. Be2 {[%emt 0:02:31]} Be6 {[%emt 0:00:19]} 10. O-O-O {[%emt 0:05:55]} a6 {[%emt 0:03:49]} 11. Bc4 {[%emt 0:02:02]} Qd7 {[%emt 0:02:13]} 12. Bxe6 {[%emt 0:03:55]} Qxe6 {[%emt 0:00:38]} 13. Kb1 {[%emt 0:03:45]} Rfd8 {[%emt 0:02:40]} 14. Nd5 {[%emt 0:02:32]} Nxd5 {[%emt 0:04:51]} 15. exd5 {[%emt 0:03:10]} Qg6 {[%emt 0:00:54]} 16. f3 {[%emt 0:01:37]} Bf6 {[%emt 0:01:55]} 17. Qd2 {[%emt 0:02:17]} Re8 {[%emt 0:01:23]} 18. g4 {[%emt 0:02:22]} Be5 {[%emt 0:01:02]} 19. Bxe5 {[%emt 0:05:01]} dxe5 {[%emt 0:00:16]} 20. f4 {[%emt 0:19:56]} exf4 {[%emt 0:00:51]} 21. Qxf4 {[%emt 0:00:07]} Qd6 {[%emt 0:00:37]} 22. Qxd6 {[%emt 0:07:52]} cxd6 {[%emt 0:00:04]} 23. Rhe1 {[%emt 0:04:59]} g5 {[%emt 0:00:31]} 24. Kc1 {[%emt 0:03:24]} Kg7 {[%emt 0:01:30]} 25. Kd2 {[%emt 0:03:58]} Kg6 {[%emt 0:00:06]} 26. c4 {[%emt 0:02:59]} b6 {[%emt 0:00:19]} 27. b3 {[%emt 0:01:52]} a5 {[%emt 0:00:28]} 28. a3 {[%emt 0:01:19]} h5 {[%emt 0:00:17]} 29. gxh5+ {[%emt 0:00:38]} Kxh5 {[%emt 0:00:11]} 30. Rf1 {[%emt 0:00:17]} Kg6 {[%emt 0:01:01]} 31. Rf3 {[%emt 0:00:24]} f5 {[%emt 0:00:10]} 32. Rg1 {[%emt 0:03:04]} Kf6 {[%emt 0:01:39]} 33. Rfg3 {[%emt 0:03:47]} Rg8 {[%emt 0:00:20]} 34. Rf1 {[%emt 0:02:45]} Rae8 {[%emt 0:00:41]} 35. Rgf3 {[%emt 0:04:21]} Re5 {[%emt 0:00:26]} 36. Rg1 {[%emt 0:00:50]} Rh8 {[%emt 0:01:29]} 37. Rfg3 {[%emt 0:01:15]} Rg8 {[%emt 0:00:38]} 38. Rf3 {[%emt 0:00:30]} Re4 {[%emt 0:00:20]} 39. Rgf1 {[%emt 0:00:40]} f4 {[%emt 0:01:09]} 40. Kd3 {[%emt 0:00:35]} Rge8 {[%emt 0:00:11]} 41. h4 {[%emt 0:30:28]} Re3+ {[%emt 0:32:16]} 42. Kd2 {[%emt 0:00:15]} Rxf3 {[%emt 0:03:37]} 43. Rxf3 {[%emt 0:00:05]} Kf5 {[%emt 0:00:22]} 44. hxg5 {[%emt 0:00:00]} Kxg5 {[%emt 0:00:00]} 45. b4 {[%emt 0:00:00]} Kg4 {[%emt 0:00:00]} 46. Rd3 {[%emt 0:00:00]} f3 {[%emt 0:00:00]} 47. Re3 {[%emt 0:02:02]} f2 {[%emt 0:00:00]} 48. Rxe8 {[%emt 0:00:04]} f1=Q {[%emt 0:00:15]} 49. Rg8+ {[%emt 0:00:02]} Kh5 {[%emt 0:00:00]} 50. Rc8 {[%emt 0:01:29]} Qf2+ {[%emt 0:00:00]} 51. Kc1 {[%emt 0:00:32]} Qe3+ {[%emt 0:00:00]} 52. Kb2 {[%emt 0:00:39]} a4 {[%emt 0:00:00]} 53. Rh8+ {[%emt 0:00:45]} Kg6 {[%emt 0:00:00]} 54. Rg8+ {[%emt 0:00:14]} Kh7 {[%emt 0:00:00]} 55. Rg2 {[%emt 0:00:42]} Qb3+ {[%emt 0:00:00]} 56. Kc1 {[%emt 0:00:28]} Qxc4+ {[%emt 0:00:00]} 57. Kb2 {[%emt 0:00:17]} Qb3+ {[%emt 0:00:00]} 0-1

[Event "44th Chess Olympiad Women 2022"]
[Site "Chennai"]
[Date "2022.08.09"]
[Round "11.66"]
[White "Nema, Rabab Ahmed"]
[Black "Jacobs, Annelaine"]
[Result "1-0"]
[ECO "E92"]
[WhiteElo "1172"]
[BlackElo "1612"]
[Annotator "NA RC COMBH"]
[PlyCount "92"]
[EventDate "2022.07.29"]
[EventType "team-tourn"]
[EventCountry "IND"]
[SourceTitle "playchess.com"]
[Source "ChessBase"]
[SourceQuality "1"]
[WhiteTeam "Kuwait"]
[BlackTeam "ARU"]
[WhiteTeamCountry "KUW"]
[TimeControl "40/5400+30:1800+30"]

1. d4 {[%emt 0:00:07]} g6 {[%emt 0:00:03]} 2. c4 {[%emt 0:00:22]} Nf6 {[%emt 0:00:09]} 3. Nc3 {[%emt 0:00:10]} Bg7 {[%emt 0:00:07]} 4. e4 {[%emt 0:00:19]} d6 {[%emt 0:00:05]} 5. Nf3 {[%emt 0:00:07]} O-O {[%emt 0:00:08]} 6. Be2 {[%emt 0:00:08]} Nbd7 {[%emt 0:05:38]} 7. h3 {[%emt 0:01:21]} e5 {[%emt 0:01:04]} 8. d5 {[%emt 0:00:00]} a5 {[%emt 0:00:39]} 9. Bg5 {[%emt 0:00:00]} Nc5 {[%emt 0:00:48]} 10. Nd2 {[%emt 0:00:00]} Bd7 {[%emt 0:05:14]} 11. a4 {[%emt 0:12:09]} Qe8 {[%emt 0:03:51]} 12. O-O {[%emt 0:01:46]} h6 {[%emt 0:09:42]} 13. Be3 {[%emt 0:03:37]} b6 {[%emt 0:04:59]} 14. Qc2 {[%emt 0:02:24]} Nh7 {[%emt 0:03:37]} 15. Nb5 {[%emt 0:05:04]} Na6 {[%emt 0:06:05]} 16. Nf3 {[%emt 0:16:49]} f5 {[%emt 0:01:00]} 17. exf5 {[%emt 0:03:03]} gxf5 {[%emt 0:00:18]} 18. Nh2 {[%emt 0:04:35]} f4 {[%emt 0:01:10]} 19. Bd2 {[%emt 0:00:56]} Qe7 {[%emt 0:16:51]} 20. Qd1 {[%emt 0:11:16]} Ng5 {[%emt 0:15:11]} 21. Bg4 {[%emt 0:03:30]} Kh8 {[%emt 0:16:44]} 22. Bxd7 {[%emt 0:09:23]} Qxd7 {[%emt 0:00:05]} 23. Nc3 {[%emt 0:04:55]} Rf6 {[%emt 0:03:32]} 24. h4 {[%emt 0:01:39]} Nh7 {[%emt 0:02:43]} 25. Ne4 {[%emt 0:06:00]} Rf7 {[%emt 0:02:13]} 26. h5 {[%emt 0:04:09]} Rg8 {[%emt 0:00:36]} 27. Nf3 {[%emt 0:00:41]} Qf5 {[%emt 0:00:50]} 28. Nh4 {[%emt 0:00:38]} Qxe4 {[%emt 0:00:33]} 29. Ng6+ {[%emt 0:00:02]} Qxg6 {[%emt 0:00:18]} 30. hxg6 {[%emt 0:00:01]} Rf6 {[%emt 0:00:33]} 31. gxh7 {[%emt 0:00:02]} Kxh7 {[%emt 0:00:36]} 32. Qc2+ {[%emt 0:02:04]} Kh8 {[%emt 0:00:14]} 33. f3 {[%emt 0:00:20]} Bf8 {[%emt 0:00:21]} 34. Kf2 {[%emt 0:01:18]} h5 {[%emt 0:00:48]} 35. Rh1 {[%emt 0:00:06]} Rh6 {[%emt 0:00:14]} 36. Rh2 {[%emt 0:00:32]} h4 {[%emt 0:00:43]} 37. Rah1 {[%emt 0:00:27]} Be7 {[%emt 0:00:42]} 38. Ke2 {[%emt 0:01:15]} Rhg6 {[%emt 0:00:32]} 39. Rg1 {[%emt 0:01:51]} Kg7 {[%emt 0:00:31]} 40. Be1 {[%emt 0:01:59]} Kf8 {[%emt 0:00:09]} 41. Qf5+ {[%emt 0:30:27]} Kg7 {[%emt 0:30:48]} 42. Kf1 {[%emt 0:02:06]} Nc5 {[%emt 0:00:26]} 43. Bxh4 {[%emt 0:00:32]} Rf8 {[%emt 0:00:00]} 44. Qc2 {[%emt 0:00:00]} Bxh4 {[%emt 0:00:00]} 45. Rh3 {[%emt 0:00:33]} Bg3 46. Rxg3 {[%emt 0:00:00]} Kf6 {[%emt 0:00:31]} 1-0

[Event "44th Chess Olympiad Women 2022"]
[Site "Chennai"]
[Date "2022.08.09"]
[Round "11.66"]
[White "Alhasan, Zainah"]
[Black "Cabral, Sylvi"]
[Result "0-1"]
[ECO "C40"]
[WhiteElo "1095"]
[BlackElo "1100"]
[Annotator "NA RC COMBH"]
[PlyCount "122"]
[EventDate "2022.07.29"]
[EventType "team-tourn"]
[EventCountry "IND"]
[SourceTitle "playchess.com"]
[Source "ChessBase"]
[SourceQuality "1"]
[WhiteTeam "Kuwait"]
[BlackTeam "ARU"]
[WhiteTeamCountry "KUW"]
[TimeControl "40/5400+30:1800+30"]

1. e4 {[%emt 0:00:07]} e5 {[%emt 0:00:06]} 2. Nf3 {[%emt 0:00:09]} d5 {[%emt 0:00:06]} 3. exd5 {[%emt 0:00:14]} e4 {[%emt 0:00:08]} 4. Qe2 {[%emt 0:00:29]} Nf6 {[%emt 0:00:10]} 5. d3 {[%emt 0:00:59]} Qxd5 {[%emt 0:00:12]} 6. Nc3 {[%emt 0:00:56]} Bb4 {[%emt 0:00:07]} 7. a3 {[%emt 0:01:13]} Bxc3+ {[%emt 0:00:21]} 8. bxc3 {[%emt 0:00:34]} O-O {[%emt 0:00:31]} 9. dxe4 {[%emt 0:01:07]} Nxe4 {[%emt 0:02:08]} 10. c4 {[%emt 0:02:09]} Qa5+ {[%emt 0:01:59]} 11. Bd2 {[%emt 0:01:22]} Nxd2 {[%emt 0:01:47]} 12. Qxd2 {[%emt 0:02:19]} Qxd2+ {[%emt 0:00:46]} 13. Nxd2 {[%emt 0:01:05]} Re8+ {[%emt 0:00:10]} 14. Kd1 {[%emt 0:01:43]} Bf5 {[%emt 0:02:29]} 15. Bd3 {[%emt 0:01:31]} Be6 {[%emt 0:03:41]} 16. Rb1 {[%emt 0:02:40]} Nc6 {[%emt 0:32:04]} 17. Rxb7 {[%emt 0:02:38]} Re7 {[%emt 0:02:41]} 18. Re1 {[%emt 0:05:03]} a6 {[%emt 0:05:44]} 19. Ne4 {[%emt 0:03:04]} Rd8 {[%emt 0:06:14]} 20. Kc1 {[%emt 0:03:20]} Bc8 {[%emt 0:03:00]} 21. Rb1 {[%emt 0:02:23]} f5 {[%emt 0:00:29]} 22. Nf6+ {[%emt 0:02:27]} gxf6 {[%emt 0:00:23]} 23. Rxe7 {[%emt 0:00:36]} Nxe7 {[%emt 0:00:15]} 24. Rb8 {[%emt 0:02:31]} Nc6 {[%emt 0:01:09]} 25. Rb1 {[%emt 0:01:03]} Ne5 {[%emt 0:00:54]} 26. Rb3 {[%emt 0:01:34]} Nxd3+ {[%emt 0:04:28]} 27. Rxd3 {[%emt 0:00:21]} Rxd3 {[%emt 0:00:13]} 28. cxd3 {[%emt 0:00:06]} c5 {[%emt 0:03:04]} 29. Kd2 {[%emt 0:02:20]} Kf7 {[%emt 0:01:06]} 30. Ke3 {[%emt 0:01:42]} Ke6 {[%emt 0:03:12]} 31. d4 {[%emt 0:01:01]} cxd4+ {[%emt 0:05:04]} 32. Kxd4 {[%emt 0:00:52]} Kd6 {[%emt 0:00:08]} 33. c5+ {[%emt 0:01:25]} Kc6 {[%emt 0:00:08]} 34. Kc4 {[%emt 0:01:15]} Be6+ {[%emt 0:01:08]} 35. Kb4 {[%emt 0:01:48]} h5 {[%emt 0:01:35]} 36. f4 {[%emt 0:01:54]} Bf7 {[%emt 0:00:55]} 37. g3 {[%emt 0:01:04]} Be6 {[%emt 0:00:31]} 38. Ka5 {[%emt 0:01:01]} Kxc5 {[%emt 0:00:37]} 39. Kxa6 {[%emt 0:00:08]} Bb3 {[%emt 0:00:09]} 40. Ka5 {[%emt 0:00:54]} Bd1 {[%emt 0:05:00]} 41. h3 {[%emt 0:31:21]} Kd5 {[%emt 0:30:34]} 42. Kb4 {[%emt 0:00:57]} Ke4 {[%emt 0:00:33]} 43. Kc3 {[%emt 0:00:23]} Kf3 {[%emt 0:00:38]} 44. Kd2 {[%emt 0:00:19]} Ba4 {[%emt 0:01:10]} 45. Ke1 {[%emt 0:00:48]} Kxg3 {[%emt 0:00:26]} 46. Kf1 {[%emt 0:00:16]} Kxh3 {[%emt 0:00:49]} 47. Kf2 {[%emt 0:00:21]} Bc6 {[%emt 0:00:16]} 48. a4 {[%emt 0:00:50]} h4 {[%emt 0:01:13]} 49. a5 {[%emt 0:00:24]} Kg4 {[%emt 0:00:25]} 50. a6 {[%emt 0:00:25]} h3 {[%emt 0:00:15]} 51. Kg1 {[%emt 0:00:10]} Kg3 {[%emt 0:00:16]} 52. a7 {[%emt 0:00:16]} Ba8 {[%emt 0:00:05]} 53. Kf1 {[%emt 0:00:10]} h2 {[%emt 0:00:25]} 54. Ke2 {[%emt 0:00:06]} h1=Q {[%emt 0:00:21]} 55. Kd2 {[%emt 0:00:13]} Qe4 {[%emt 0:00:27]} 56. Kc1 {[%emt 0:00:09]} Qe2 {[%emt 0:00:41]} 57. Kb1 {[%emt 0:00:08]} Kf3 {[%emt 0:00:18]} 58. Ka1 {[%emt 0:00:10]} Ke3 {[%emt 0:00:35]} 59. Kb1 {[%emt 0:00:09]} Kd3 {[%emt 0:00:34]} 60. Ka1 {[%emt 0:00:09]} Kc3 {[%emt 0:00:25]} 61. Kb1 {[%emt 0:00:11]} Qe8 {[%emt 0:01:09]} 0-1

[Event "44th Chess Olympiad Women 2022"]
[Site "Chennai"]
[Date "2022.08.09"]
[Round "11.67"]
[White "Elfelo, Khadija"]
[Black "Callender, Jessica"]
[Result "1/2-1/2"]
[ECO "B06"]
[WhiteElo "1875"]
[BlackElo "1295"]
[Annotator "NA RC COMBH"]
[PlyCount "75"]
[EventDate "2022.07.29"]
[EventType "team-tourn"]
[EventCountry "IND"]
[SourceTitle "playchess.com"]
[Source "ChessBase"]
[SourceQuality "1"]
[WhiteTeam "Libya"]
[BlackTeam "Guyana"]
[WhiteTeamCountry "LBY"]
[BlackTeamCountry "GUY"]
[TimeControl "40/5400+30:1800+30"]

1. e4 {[%emt 0:00:04]} d6 {[%emt 0:00:08]} 2. d4 {[%emt 0:00:15]} g6 {[%emt 0:00:15]} 3. Nc3 {[%emt 0:00:34]} Bg7 {[%emt 0:00:08]} 4. f4 {[%emt 0:00:40]} c6 {[%emt 0:00:34]} 5. Nf3 {[%emt 0:00:31]} Nd7 {[%emt 0:02:13]} 6. Bd3 {[%emt 0:01:45]} e5 {[%emt 0:01:41]} 7. dxe5 {[%emt 0:04:02]} dxe5 {[%emt 0:00:49]} 8. f5 {[%emt 0:03:55]} Ne7 {[%emt 0:02:31]} 9. Bg5 {[%emt 0:02:30]} h6 {[%emt 0:02:04]} 10. Be3 {[%emt 0:00:45]} O-O {[%emt 0:00:24]} 11. Qd2 {[%emt 0:01:36]} Kh7 {[%emt 0:03:03]} 12. h4 {[%emt 0:13:26]} Nf6 {[%emt 0:03:03]} 13. Nxe5 {[%emt 0:10:21]} gxf5 {[%emt 0:08:22]} 14. exf5 {[%emt 0:03:42]} Bxf5 {[%emt 0:02:38]} 15. Qf2 {[%emt 0:05:46]} Bxd3 {[%emt 0:05:07]} 16. Nxd3 {[%emt 0:00:20]} Ng4 {[%emt 0:01:36]} 17. Qf3 {[%emt 0:02:46]} Nxe3 {[%emt 0:01:02]} 18. Qxe3 {[%emt 0:00:01]} Nd5 {[%emt 0:00:39]} 19. Qd2 {[%emt 0:04:34]} Re8+ {[%emt 0:05:00]} 20. Ne2 {[%emt 0:02:39]} Ne3 {[%emt 0:05:37]} 21. Kf2 {[%emt 0:12:53]} Qf6+ {[%emt 0:09:42]} 22. Kg1 {[%emt 0:09:02]} Nc4 {[%emt 0:06:35]} 23. Qd1 {[%emt 0:07:50]} Rad8 {[%emt 0:06:27]} 24. Qf1 {[%emt 0:02:50]} Qxf1+ {[%emt 0:02:23]} 25. Kxf1 {[%emt 0:00:01]} Nxb2 {[%emt 0:02:03]} 26. Nxb2 {[%emt 0:00:11]} Bxb2 {[%emt 0:00:08]} 27. Rb1 {[%emt 0:01:44]} Bg7 {[%emt 0:01:22]} 28. Rh3 {[%emt 0:00:31]} b5 {[%emt 0:00:22]} 29. Rf3 {[%emt 0:00:26]} f6 {[%emt 0:01:25]} 30. Nf4 {[%emt 0:00:55]} Rd2 {[%emt 0:01:19]} 31. a4 {[%emt 0:01:13]} a6 {[%emt 0:03:10]} 32. axb5 {[%emt 0:00:19]} axb5 {[%emt 0:01:16]} 33. c4 {[%emt 0:00:58]} Re5 {[%emt 0:02:00]} 34. cxb5 {[%emt 0:01:07]} Rxb5 {[%emt 0:00:32]} 35. Rxb5 {[%emt 0:00:29]} cxb5 {[%emt 0:00:02]} 36. Rb3 {[%emt 0:00:33]} Rd4 {[%emt 0:01:40]} 37. g3 {[%emt 0:00:12]} b4 {[%emt 0:00:20]} 38. Ke2 {[%emt 0:00:28]} 1/2-1/2